fUSD/lending_fUSD_20260410
["ID","MTS","AMOUNT","RATE_DAILY","PERIOD"]
[420206963,1775777446693,-287.31096932,0.00015999,2]
[420206965,1775777446717,-500.0,0.00015999,2]
[420206968,1775777446749,-597.36773888,0.00015999,2]
[420206970,1775777446857,-500.0,0.00015999,2]
[420206973,1775777446868,-313.25560369,0.00015999,2]
[420206976,1775777446889,-302.60852797,0.00015999,2]
[420206979,1775777446900,-277.96488324,0.00015999,2]
[420206982,1775777446911,-225.0,0.00016,5]
[420206984,1775777446930,-265315.06404314,0.00016,2]
[420206992,1775777447070,-174.93,0.00014384,2]
[420206994,1775777447087,-3774.13120022,0.00016,2]
[420206997,1775777447122,-28099.22773341,0.00016,2]
[420206999,1775777447144,-6148.41103479,0.00016,2]
[420207001,1775777447156,-717.3,0.00016,2]
[420207004,1775777447168,-42861.85364533,0.00016,2]
[420207006,1775777447182,-1556.66618455,0.00016,2]
[420207008,1775777447200,-486.66535553,0.00016,2]
[420207011,1775777447212,-12088.61476075,0.00016,2]
[420207013,1775777447231,-442.66,0.00016,2]
[420207016,1775777447244,-1063.75683969,0.00016,2]
[420207032,1775778632444,-200.0,9.989e-05,2]
[420207033,1775778632465,-291.0,9.989e-05,2]
[420207034,1775778632475,-184.0,0.00010439,2]
[420207035,1775778632500,-263.56972931,0.00010439,2]
[420207036,1775778632510,-300.0,0.00010987,2]
[420207037,1775778632535,-4634.57886888,0.00010988,2]
[420207038,1775778632626,-365.42113112,0.00010988,2]
[420207039,1775778632636,-49.49356629,0.00010988,2]
[420207041,1775778632676,-316.11449079,0.00010988,2]
[420207043,1775778632688,-234.39194292,0.00010988,2]
[420207045,1775778632697,-667.8617545,0.00010988,2]
[420207047,1775778632707,-155.05,0.00011244,2]
[420207048,1775778632721,-18.12630258,0.00012457,2]
[420207051,1775778632734,-231.87369742,0.00012457,2]
[420207053,1775778632745,-150.0,0.00012739,2]
[420207055,1775778632754,-906.43415917,0.00012873,2]
[420207058,1775778632790,-278.52586619,0.00012873,2]
[420207072,1775778638417,-359.17359909,0.00012873,2]
[420207073,1775778638436,-12935.05003534,0.00012873,2]
[420207074,1775778638535,-370.25816643,0.00012873,2]
[420207075,1775778638556,-273.62613258,0.00012873,2]
[420207076,1775778638569,-17800.45971582,0.00012873,2]
[420207077,1775778638620,-426.41664245,0.00012873,2]
[420207078,1775778638636,-16836.09899821,0.00012873,2]
[420207079,1775778638732,-18542.795535,0.00012873,2]
[420207216,1775778641014,-868.80889613,0.00012873,2]
[420207218,1775778641038,-615.16658174,0.00012873,2]
[420207220,1775778641050,-37181.4234862,0.00012873,2]
[420207241,1775778641317,-5562.74478565,0.00012873,2]
[420207243,1775778641327,-200.0,0.00012965,2]
[420207245,1775778641376,-151.0,0.00012965,2]
[420207247,1775778641387,-499.04675061,0.00012965,2]
[420207249,1775778641410,-0.95324939,0.00012965,2]
[420207251,1775778641430,-151.0,0.00012965,2]
[420207253,1775778641440,-150.0,0.00012971,2]
[420207255,1775778641451,-2576.20545921,0.00012972,2]
[420207385,1775778643412,-9511.83304387,0.00012972,2]
[420207387,1775778643424,-1978.45257975,0.00012972,2]
[420207389,1775778643442,-150.0,0.00012972,2]
[420207391,1775778643452,-285.50676789,0.00012972,2]
[420207393,1775778643466,-160.85,0.00012995,2]
[420207395,1775778643476,-2500.0,0.00012999,30]
[420207397,1775778643486,-250.0,0.00013,2]
[420207399,1775778643498,-406.0,0.00013073,2]
[420207401,1775778643510,-506.0,0.000131,2]
[420207403,1775778643527,-150.0,0.000136,2]
[420207405,1775778643537,-200.0,0.00013657,2]
[420207407,1775778643546,-150.0,0.00013699,2]
[420207409,1775778643556,-150.0,0.00013754,2]
[420207411,1775778643569,-989.04459636,0.0001381,2]
[420207416,1775778643603,-505.0,0.000131,2]
[420207418,1775778643613,-172.15540364,0.0001381,2]
[420207420,1775778643623,-754.57,0.00013829,2]
[420207422,1775778643632,-445.38856542,0.00013848,2]
[420207428,1775778643690,-2794.61143458,0.00013848,2]
[420207430,1775778643712,-1600.0,0.00013892,2]
[420207432,1775778643722,-150.0,0.00013973,2]
[420207434,1775778643748,-1838.37,0.00014012,2]
[420207436,1775778643765,-1500.0,0.0001403,2]
[420207437,1775778643782,-255.0,0.00014074,2]
[420207440,1775778643793,-160.0,0.00014128,2]
[420207441,1775778643810,-4673.87,0.00014285,2]
[420207444,1775778643831,-208.0,0.0001449,2]
[420207445,1775778643842,-2357.95,0.00014522,2]
[420207447,1775778643852,-506.0,0.00014523,3]
[420207449,1775778643874,-10110.03,0.00014548,2]
[420207451,1775778643883,-1000.0,0.00014637,2]
[420207453,1775778643905,-165.95,0.00014771,2]
[420207455,1775778643916,-209.0,0.00014826,2]
[420207457,1775778643926,-175.2676,0.000149,2]
[420207459,1775778643966,-300.0,0.00015,2]
[420207461,1775778643976,-788.63575,0.00015,2]
[420207463,1775778644003,-260.282652,0.000151,2]
[420207466,1775778644030,-150.0,0.000151,2]
[420207467,1775778644044,-31766.9118,0.00015145,2]
[420207471,1775778644054,-698.2581,0.00015145,2]
[420207474,1775778644098,-1639.15916746,0.00015167,2]
[420207476,1775778644108,-200.0,0.00015199,2]
[420207478,1775778644139,-601.3376128,0.00015199,2]
[420207480,1775778644168,-1639.15916743,0.00015248,2]
[420207482,1775778644201,-500.0,0.00015266,2]
[420207484,1775778644235,-500.0,0.00015266,2]
[420207486,1775778644265,-500.0,0.00015266,2]
[420207489,1775778644286,-500.0,0.00015266,2]
[420207490,1775778644307,-500.0,0.00015266,2]
[420207492,1775778644333,-500.0,0.00015266,2]
[420207494,1775778644381,-500.0,0.00015266,2]
[420207496,1775778644390,-500.0,0.00015266,2]
[420207498,1775778644404,-500.0,0.00015266,2]
[420207500,1775778644415,-500.0,0.00015266,2]
[420207502,1775778644424,-500.0,0.00015266,2]
[420207504,1775778644436,-500.0,0.00015266,2]
[420207506,1775778644449,-436.48877466,0.00015266,2]
[420207508,1775778644461,-433.0,0.00015267,2]
[420207510,1775778644470,-293.34699036,0.0001532,2]
[420207512,1775778644481,-449.72528679,0.0001532,2]
[420207514,1775778644498,-1639.15916743,0.0001533,2]
[420207516,1775778644508,-500.0,0.0001537,2]
[420207517,1775778644517,-1639.15916743,0.00015411,2]
[420207519,1775778644527,-1639.15916743,0.00015493,2]
[420207521,1775778644547,-1147.0,0.00015543,2]
[420207523,1775778644558,-1147.0,0.00015553,2]
[420207525,1775778644568,-150.05293543,0.00015553,2]
[420207527,1775778644590,-1147.0,0.00015571,2]
[420207529,1775778644601,-1639.15916743,0.00015574,2]
[420207531,1775778644615,-165.95,0.00015584,2]
[420207533,1775778644630,-1859.0,0.00015616,2]
[420207535,1775778644642,-150.0,0.00015616,2]
[420207537,1775778644656,-150.0,0.00015616,2]
[420207539,1775778644681,-288.98798831,0.00015616,2]
[420207541,1775778644698,-1600.0,0.00015628,2]
[420207543,1775778644749,-1639.15916743,0.00015656,2]
[420207545,1775778644758,-162.0,0.0001568,2]
[420207548,1775778644819,-160.0,0.0001568,2]
[420207549,1775778644832,-428.781914,0.0001568,2]
[420207551,1775778644866,-697.563829,0.0001568,2]
[420207553,1775778644880,-160.0,0.0001568,2]
[420207555,1775778644889,-386.545451,0.0001568,2]
[420207557,1775778644899,-613.090902,0.0001568,2]
[420207559,1775778644917,-1639.15916743,0.00015737,2]
[420207561,1775778644927,-1147.0,0.00015772,2]
[420207563,1775778644936,-1147.0,0.00015777,2]
[420207565,1775778644946,-1157.892,0.00015813,2]
[420207567,1775778644962,-1639.15916743,0.00015819,2]
[420207569,1775778644972,-1347.0,0.00015843,2]
[420207571,1775778644982,-622.0,0.00015843,2]
[420207573,1775778644997,-3524.0,0.00015843,2]
[420207575,1775778645007,-926.0,0.00015843,2]
[420207592,1775778645380,-1218.0,0.00015843,2]
[420207595,1775778645410,-1264.0,0.00015843,2]
[420207596,1775778645423,-2471.0,0.00015843,2]
[420207598,1775778645468,-3773.0,0.00015843,2]
[420207600,1775778645478,-415.0,0.00015843,2]
[420207602,1775778645494,-1147.0,0.00015875,2]
[420207604,1775778645512,-2000.0,0.0001589,2]
[420207606,1775778645522,-2500.0,0.00015897,2]
[420207608,1775778645532,-500.0,0.00015899,2]
[420207610,1775778645554,-500.0,0.00015899,2]
[420207612,1775778645564,-568.56,0.00015899,2]
[420207614,1775778645573,-568.56,0.00015899,2]
[420207616,1775778645601,-500.0,0.00015899,2]
[420207618,1775778645611,-500.0,0.00015899,2]
[420207620,1775778645620,-500.0,0.00015899,2]
[420207622,1775778645635,-500.0,0.00015899,2]
[420207624,1775778645646,-500.0,0.00015899,2]
[420207626,1775778645665,-500.0,0.00015899,2]
[420207628,1775778645675,-5000.0,0.000159,2]
[420207630,1775778645685,-1639.15916743,0.000159,2]
[420207632,1775778645695,-611.21240296,0.000159,2]
[420207634,1775778645710,-200.0,0.000159,2]
[420207636,1775778645724,-210.99779366,0.000159,2]
[420207638,1775778645735,-250.0,0.00015912,2]
[420207640,1775778645751,-1000.0,0.00015928,2]
[420207642,1775778645762,-506.0,0.00015947,4]
[420207644,1775778645772,-1147.0,0.00015956,2]
[420207645,1775778645805,-359.645,0.00015969,2]
[420207648,1775778645900,-508.06532933,0.00015973,2]
[420207649,1775778645969,-500.0,0.00015973,2]
[420207651,1775778646084,-153.94907903,0.00015987,2]
[420207654,1775778646112,-6187.2475032,0.00015997,2]
[420207657,1775778646122,-10379.6461101,0.00015997,2]
[420207659,1775778646131,-500.0,0.00015998,2]
[420207661,1775778646155,-500.0,0.00015998,2]
[420207663,1775778646166,-500.0,0.00015998,2]
[420207665,1775778646175,-500.0,0.00015998,2]
[420207667,1775778646190,-500.0,0.00015998,2]
[420207669,1775778646207,-500.0,0.00015998,2]
[420207670,1775778646216,-500.0,0.00015998,2]
[420207672,1775778646232,-500.0,0.00015998,2]
[420207674,1775778646241,-500.0,0.00015998,2]
[420207676,1775778646251,-500.0,0.00015998,2]
[420207678,1775778646260,-500.0,0.00015998,2]
[420207680,1775778646279,-500.0,0.00015998,2]
[420207682,1775778646291,-500.0,0.00015998,2]
[420207684,1775778646301,-500.0,0.00015998,2]
[420207686,1775778646311,-500.0,0.00015998,2]
[420207687,1775778646323,-580.29520317,0.00015999,2]
[420207689,1775778646332,-568.56,0.00015999,2]
[420207691,1775778646344,-568.56,0.00015999,2]
[420207693,1775778646353,-568.56,0.00015999,2]
[420207695,1775778646362,-568.56,0.00015999,2]
[420207697,1775778646373,-568.56,0.00015999,2]
[420207699,1775778646386,-568.56,0.00015999,2]
[420207701,1775778646396,-568.56,0.00015999,2]
[420207703,1775778646406,-568.56,0.00015999,2]
[420207705,1775778646422,-568.56,0.00015999,2]
[420207707,1775778646433,-568.56,0.00015999,2]
[420207709,1775778646442,-568.56,0.00015999,2]
[420207711,1775778646452,-568.56,0.00015999,2]
[420207713,1775778646470,-568.56,0.00015999,2]
[420207715,1775778646493,-568.56,0.00015999,2]
[420207717,1775778646504,-568.56,0.00015999,2]
[420207719,1775778646518,-568.56,0.00015999,2]
[420207721,1775778646533,-568.56,0.00015999,2]
[420207723,1775778646550,-568.56,0.00015999,2]
[420207725,1775778646562,-568.56,0.00015999,2]
[420207726,1775778646572,-568.56,0.00015999,2]
[420207728,1775778646583,-568.56,0.00015999,2]
[420207730,1775778646595,-568.67136249,0.00015999,2]
[420207732,1775778646605,-266.21,0.00015999,2]
[420207734,1775778646615,-155.0,0.00015999,2]
[420207736,1775778646626,-500.0,0.00015999,2]
[420207738,1775778646645,-500.0,0.00015999,2]
[420207740,1775778646656,-500.0,0.00015999,2]
[420207742,1775778646665,-500.0,0.00015999,2]
[420207744,1775778646696,-500.0,0.00015999,2]
[420207746,1775778646723,-500.0,0.00015999,2]
[420207748,1775778646738,-500.0,0.00015999,2]
[420207750,1775778646757,-500.0,0.00015999,2]
[420207752,1775778646775,-500.0,0.00015999,2]
[420207754,1775778646784,-500.0,0.00015999,2]
[420207756,1775778646800,-500.0,0.00015999,2]
[420207758,1775778646809,-627.73810891,0.00015999,2]
[420207760,1775778646819,-169.394032,0.00015999,2]
[420207762,1775778646833,-150.0,0.00015999,2]
[420207764,1775778646842,-150.0,0.00015999,2]
[420207766,1775778646855,-225.78825733,0.00015999,2]
[420207768,1775778646865,-569.27892258,0.00015999,2]
[420207770,1775778646878,-211.82596958,0.00015999,2]
[420207772,1775778646889,-194.57541827,0.00015999,2]
[420207774,1775778646899,-500.0,0.00015999,2]
[420207776,1775778646909,-268.15741722,0.00015999,2]
[420207778,1775778646929,-154.0,0.00016,5]
[420207780,1775778646938,-153.0,0.00016,5]
[420207782,1775778646956,-12724.12397827,0.00016,2]
[420207854,1775778648203,-335.29466095,0.00016,2]
[420207862,1775778648316,-9559.21788676,0.00016,2]
[420207864,1775778648330,-60265.87492689,0.00016,2]
[420207866,1775778648345,-3016.57165071,0.00016,2]
[420207869,1775778648376,-56170.19246528,0.00016,2]
[420207871,1775778648391,-322.8916,0.00016,2]
[420207873,1775778648433,-2913.12018298,0.00016,2]
[420207875,1775778648450,-242513.6210623,0.00016,2]
[420207877,1775778648472,-517.55965814,0.00016,2]
[420208727,1775779091745,222.0,0.000161,120]
[420208729,1775779570178,500.0,0.000161,120]
[420208730,1775779570764,2500.05,0.000161,120]
[420208744,1775779831514,-300.0,9.999e-05,2]
[420208745,1775779831525,-300.0,9.999e-05,2]
[420208746,1775779831543,-340.11642928,9.999e-05,2]
[420208747,1775779831561,-859.88357072,9.999e-05,2]
[420208748,1775779831580,-895.49255996,0.0001,2]
[420208749,1775779831591,-777.63844115,0.0001,2]
[420208750,1775779831603,-5146.06409443,0.0001,2]
[420208751,1775779831614,-205.48440614,0.0001,2]
[420208752,1775779831630,-195.0,0.00010999,2]
[420208753,1775779831667,-150.0,0.00010999,2]
[420208754,1775779831679,-300.0,0.00010999,2]
[420208755,1775779831703,-420.0,0.00010999,2]
[420208756,1775779831715,-594.0,0.00010999,2]
[420208757,1775779831747,-205.48440612,0.00011336,2]
[420208758,1775779831757,-255.0,0.00012044,2]
[420208759,1775779831784,-587.0,0.00012099,2]
[420208760,1775779831814,-396.0,0.00012293,2]
[420208761,1775779831842,-158.27,0.0001243,2]
[420208762,1775779831852,-310.02597767,0.000125,2]
[420208763,1775779831862,-998.0,0.00012513,2]
[420208764,1775779831879,-1551.0,0.00012538,2]
[420208765,1775779831892,-1236.98,0.00012604,2]
[420208766,1775779831902,-10648.2999,0.000127,2]
[420208767,1775779831912,-5618.8252,0.00012772,2]
[420208768,1775779831923,-500.0,0.00012772,2]
[420208769,1775779831934,-500.0,0.00012772,2]
[420208770,1775779831944,-305.40621273,0.00012772,2]
[420208771,1775779831955,-205.48440612,0.00012772,2]
[420208772,1775779831965,-1685.0995,0.00012773,2]
[420208773,1775779831976,-155.09841182,0.00012778,2]
[420208774,1775779831992,-21805.34,0.000128,2]
[420208775,1775779832002,-161.0,0.00012853,2]
[420208776,1775779832026,-151.0,0.00012865,2]
[420208777,1775779832035,-518.84676166,0.00012865,2]
[420208778,1775779832060,-500.0,0.00012865,2]
[420208779,1775779832072,-500.0,0.00012872,2]
[420208780,1775779832108,-150.0,0.00012872,2]
[420208781,1775779832118,-500.0,0.00012873,2]
[420208782,1775779832128,-551.16582628,0.00012873,2]
[420208783,1775779832143,-591.17903633,0.00012873,2]
[420208784,1775779832152,-376.0,0.00012878,2]
[420208785,1775779832161,-220.88,0.00012889,2]
[420208786,1775779832171,-455.0,0.00012999,2]
[420208787,1775779832186,-150.0,0.00013,2]
[420208788,1775779832196,-250.0,0.00013,2]
[420208789,1775779832205,-442.0,0.00013002,2]
[420208790,1775779832215,-494.0,0.00013028,2]
[420208791,1775779832238,-711.0,0.00013054,2]
[420208792,1775779832248,-150.0,0.000131,2]
[420208793,1775779832272,-283.6213,0.000131,2]
[420208794,1775779832282,-500.0,0.00013146,2]
[420208795,1775779832292,-433.0,0.00013188,2]
[420208796,1775779832309,-250.0,0.00013212,2]
[420208797,1775779832337,-202.0,0.00013309,2]
[420208798,1775779832347,-500.0,0.00013698,2]
[420208799,1775779832383,-500.0,0.00013698,2]
[420208801,1775779832392,-500.0,0.00013698,2]
[420208803,1775779832406,-500.0,0.00013698,2]
[420208805,1775779832423,-150.0,0.00013699,2]
[420208807,1775779832433,-150.0,0.00013699,2]
[420208809,1775779832442,-200.0,0.00013699,2]
[420208811,1775779832452,-166.66,0.00013699,2]
[420208813,1775779832474,-166.66,0.00013836,2]
[420208815,1775779832484,-150.0,0.00013973,2]
[420208817,1775779832498,-166.66,0.00013973,2]
[420208819,1775779832512,-166.66,0.0001411,2]
[420208820,1775779832522,-2300.34533467,0.0001421,7]
[420208821,1775779832535,-160.0,0.00014228,2]
[420208822,1775779832552,-166.66,0.00014247,2]
[420208823,1775779832565,-500.0,0.00014282,2]
[420208824,1775779832575,-175.1786,0.000143,2]
[420208825,1775779832585,-166.66,0.00014384,2]
[420208826,1775779832595,-646.0,0.00014442,2]
[420208827,1775779832607,-1852.42,0.00014775,2]
[420208828,1775779832616,-35313.2040542,0.0001487,2]
[420208829,1775779832723,-11061.7559458,0.0001487,2]
[420208830,1775779832734,-615.68,0.00014891,2]
[420208831,1775779832747,-1772.18,0.00014914,2]
[420208832,1775779832756,-760.0,0.00014916,2]
[420208833,1775779832767,-2000.0,0.00014923,2]
[420208834,1775779832777,-790.3840542,0.0001493,2]
[420208835,1775779832791,-195.6659458,0.0001493,2]
[420208836,1775779832801,-799.41,0.00015,2]
[420208837,1775779832813,-300.0,0.00015,2]
[420208838,1775779832823,-225.0,0.00015068,2]
[420208839,1775779832833,-566.13974111,0.00015199,2]
[420208840,1775779832846,-463.86025889,0.00015199,2]
[420208841,1775779832859,-500.0,0.00015199,2]
[420208842,1775779832869,-187.88530125,0.00015199,2]
[420208843,1775779832883,-601.3376128,0.00015199,2]
[420208844,1775779832899,-1500.0,0.00015199,2]
[420208845,1775779832910,-194.72792766,0.00015199,2]
[420208846,1775779832923,-151.0,0.00015199,2]
[420208847,1775779832945,-151.0,0.00015199,2]
[420208848,1775779832957,-170.0,0.00015199,2]
[420208849,1775779832967,-644.79446246,0.00015199,2]
[420208850,1775779833002,-307.32256405,0.00015199,2]
[420208851,1775779833012,-151.0,0.000152,2]
[420208852,1775779833023,-986.05,0.00015204,2]
[420208853,1775779833044,-5268.67367,0.00015295,2]
[420208854,1775779833056,-707.0,0.00015342,2]
[420208855,1775779833065,-672.0,0.00015366,2]
[420208856,1775779833079,-325.0,0.00015384,2]
[420208857,1775779833088,-996.98,0.00015478,2]
[420208858,1775779833101,-160.0,0.00015488,2]
[420208859,1775779833112,-225.021952,0.00015488,2]
[420208860,1775779833127,-290.043904,0.00015488,2]
[420208861,1775779833140,-249.57,0.00015497,7]
[420208862,1775779833160,-204.5837,0.000155,2]
[420208863,1775779833176,-400.0,0.00015502,7]
[420208864,1775779833190,-176.026848,0.00015503,7]
[420208865,1775779833202,-400.0,0.00015506,7]
[420208866,1775779833237,-4000.0,0.00015507,2]
[420208867,1775779833315,-161.55,0.00015514,30]
[420208868,1775779833353,-675.0,0.0001553,2]
[420208869,1775779833419,-158.27,0.00015537,2]
[420208870,1775779833430,-325.0,0.00015537,2]
[420208871,1775779833476,-405.34405,0.0001557,2]
[420208872,1775779833486,-500.0,0.00015599,2]
[420208873,1775779833503,-72647.75802281,0.000156,2]
[420208874,1775779833519,-954.32,0.00015684,2]
[420208875,1775779833530,-1255.89,0.000157,2]
[420208876,1775779833540,-325.0,0.00015714,2]
[420208877,1775779833566,-1000.0,0.00015728,2]
[420208878,1775779833577,-150.0,0.00015731,2]
[420208879,1775779833597,-150.0,0.00015745,2]
[420208880,1775779833612,-208.0,0.00015748,2]
[420208881,1775779833624,-325.0,0.00015759,2]
[420208882,1775779833647,-1000.0,0.00015778,2]
[420208883,1775779833698,-672.0,0.00015779,2]
[420208884,1775779833718,-1000.0,0.00015782,2]
[420208885,1775779833744,-1000.0,0.00015784,2]
[420208886,1775779833774,-1000.0,0.00015785,2]
[420208887,1775779833785,-601.0,0.00015787,2]
[420208888,1775779833811,-325.0,0.00015789,2]
[420208889,1775779833832,-1000.0,0.00015797,2]
[420208890,1775779833852,-150.81782557,0.000158,2]
[420208891,1775779833860,-264.0,0.00015804,2]
[420208892,1775779833869,-150.0,0.00015807,2]
[420208893,1775779833883,-926.314,0.00015819,2]
[420208894,1775779833909,-150.81782557,0.00015825,2]
[420208895,1775779833923,-1000.0,0.00015828,2]
[420208896,1775779833934,-672.0,0.00015829,2]
[420208897,1775779833944,-1000.0,0.00015833,2]
[420208898,1775779833989,-1000.0,0.00015837,2]
[420208899,1775779834021,-2000.0,0.0001584,2]
[420208900,1775779834056,-150.0,0.00015842,2]
[420208901,1775779834070,-1347.0,0.00015843,2]
[420208902,1775779834095,-622.0,0.00015843,2]
[420208903,1775779834104,-1047.0,0.00015843,2]
[420208904,1775779834117,-1264.0,0.00015843,2]
[420208905,1775779834142,-926.0,0.00015843,2]
[420208906,1775779834149,-1218.0,0.00015843,2]
[420208907,1775779834156,-2471.0,0.00015843,2]
[420208908,1775779834173,-150.81782557,0.0001585,2]
[420208909,1775779834188,-700.0,0.00015853,2]
[420208910,1775779834194,-1000.0,0.00015869,2]
[420208911,1775779834201,-200.0,0.00015872,2]
[420208912,1775779834232,-150.81782557,0.00015875,2]
[420208913,1775779834243,-1000.0,0.00015888,2]
[420208914,1775779834261,-4000.0,0.00015895,2]
[420208915,1775779834299,-557.34523078,0.000159,2]
[420208916,1775779834306,-1576.32125213,0.000159,2]
[420208917,1775779834327,-5000.0,0.000159,2]
[420208918,1775779834350,-150.81782557,0.000159,2]
[420208919,1775779834359,-201.65583435,0.000159,2]
[420208920,1775779834381,-2089.27291086,0.000159,2]
[420208921,1775779834398,-8809.37449324,0.000159,2]
[420208922,1775779834418,-1816.34421589,0.000159,2]
[420208923,1775779834437,-672.0,0.00015911,2]
[420208924,1775779834457,-1000.0,0.00015922,2]
[420208925,1775779834502,-1000.0,0.00015925,2]
[420208926,1775779834513,-150.0,0.00015925,2]
[420208927,1775779834524,-325.0,0.00015926,2]
[420208928,1775779834537,-2000.0,0.0001594,2]
[420208929,1775779834547,-542.65787179,0.00015941,2]
[420208930,1775779834560,-1000.0,0.00015945,2]
[420208931,1775779834570,-250.0,0.00015945,2]
[420208932,1775779834581,-1338.71337254,0.00015956,2]
[420208933,1775779834591,-3269.0,0.00015973,2]
[420208934,1775779834612,-21987.0,0.00015973,2]
[420208935,1775779834623,-500.0,0.00015973,2]
[420208936,1775779834634,-500.0,0.00015973,2]
[420208937,1775779834644,-500.0,0.00015973,2]
[420208938,1775779834658,-500.0,0.00015973,2]
[420208939,1775779834668,-500.0,0.00015973,2]
[420208940,1775779834680,-500.0,0.00015973,2]
[420208941,1775779834694,-500.0,0.00015973,2]
[420208942,1775779834704,-473.23131418,0.00015973,2]
[420208943,1775779834717,-500.0,0.00015973,2]
[420208944,1775779834729,-500.0,0.00015973,2]
[420208945,1775779834739,-500.0,0.00015973,2]
[420208946,1775779834752,-500.0,0.00015973,2]
[420208947,1775779834762,-1000.0,0.00015977,2]
[420208948,1775779834773,-1000.0,0.00015981,2]
[420208949,1775779834784,-150.00000001,0.00015984,2]
[420208950,1775779834805,-1000.0,0.00015987,2]
[420208951,1775779834818,-151.0,0.00015987,2]
[420208952,1775779834828,-157.46462094,0.0001599,2]
[420208953,1775779834852,-167.8142876,0.0001599,2]
[420208954,1775779834862,-167.8142876,0.0001599,2]
[420208955,1775779834883,-151.0,0.00015997,2]
[420208956,1775779834909,-152.0,0.00015999,5]
[420208957,1775779834933,-300.0,0.00015999,2]
[420208958,1775779834948,-700.9335269,0.00015999,2]
[420208959,1775779834963,-300.0,0.00015999,2]
[420208960,1775779835005,-666.0,0.00015999,2]
[420208961,1775779835015,-666.0,0.00015999,2]
[420208962,1775779835025,-342.04805757,0.00015999,2]
[420208963,1775779835036,-500.0,0.00015999,2]
[420208964,1775779835047,-500.0,0.00015999,2]
[420208965,1775779835057,-510.24,0.00015999,2]
[420208966,1775779835067,-361.74,0.00015999,2]
[420208967,1775779835078,-500.0,0.00015999,2]
[420208968,1775779835089,-500.45103551,0.00015999,2]
[420208969,1775779835099,-500.0,0.00015999,2]
[420208970,1775779835112,-500.0,0.00015999,2]
[420208971,1775779835122,-500.0,0.00015999,2]
[420208972,1775779835133,-500.0,0.00015999,2]
[420208973,1775779835143,-500.0,0.00015999,2]
[420208974,1775779835154,-500.0,0.00015999,2]
[420208975,1775779835165,-169.89222941,0.00015999,2]
[420208976,1775779835176,-500.0,0.00015999,2]
[420208977,1775779835187,-500.0,0.00015999,2]
[420208978,1775779835197,-500.0,0.00015999,2]
[420208979,1775779835210,-500.0,0.00015999,2]
[420208980,1775779835223,-500.0,0.00015999,2]
[420208981,1775779835234,-500.0,0.00015999,2]
[420208982,1775779835250,-500.0,0.00015999,2]
[420208983,1775779835269,-500.0,0.00015999,2]
[420208984,1775779835280,-500.0,0.00015999,2]
[420208985,1775779835291,-500.0,0.00015999,2]
[420208986,1775779835317,-500.0,0.00015999,2]
[420208987,1775779835327,-500.0,0.00015999,2]
[420208988,1775779835358,-500.0,0.00015999,2]
[420208989,1775779835368,-500.0,0.00015999,2]
[420208990,1775779835412,-500.0,0.00015999,2]
[420208991,1775779835425,-500.0,0.00015999,2]
[420208992,1775779835443,-500.0,0.00015999,2]
[420208993,1775779835455,-500.0,0.00015999,2]
[420208994,1775779835470,-500.0,0.00015999,2]
[420208995,1775779835491,-500.0,0.00015999,2]
[420208996,1775779835501,-546.66091949,0.00015999,2]